bitfinex/quotes_BTCUSD_20220207
["timestamp","ask_amount","ask_price","bid_price","bid_amount"]
[1644256341507,0.28757141,44180.0,44174.0,0.00072908]
[1644256341908,0.30675899,44181.0,44174.0,0.00072908]
[1644256342109,0.30675899,44181.0,44166.0,0.005]
[1644256342361,0.20859735,44176.0,44175.0,0.00072907]
[1644256342553,0.39767526,44181.0,44175.0,0.00072907]
[1644256342554,0.07587133,44181.0,44175.0,0.00072907]
[1644256342754,0.41203247,44181.0,44175.0,0.00072907]
[1644256342954,0.29994758,44178.0,44175.0,0.00072907]
[1644256343152,0.29994758,44178.0,44166.0,0.005]
[1644256343353,0.29994758,44178.0,44176.0,0.00072906]
[1644256343554,0.40182227,44177.0,44176.0,0.00072906]
[1644256343755,0.12157334,44177.0,44176.0,0.00072906]
[1644256344054,0.22157334,44177.0,44176.0,0.00072906]
[1644256344452,0.22157334,44177.0,44166.0,0.005]
[1644256344656,0.0566324,44175.0,44174.0,0.00072908]
[1644256344852,0.62044216,44175.0,44174.0,0.00072908]
[1644256345263,0.72044216,44175.0,44174.0,0.00072908]
[1644256345655,0.72044216,44175.0,44167.0,0.02115537]
[1644256345855,0.72044216,44175.0,44172.0,0.0007291]
[1644256346143,0.32078256,44174.0,44172.0,0.0007291]
[1644256346319,0.0416,44173.0,44172.0,0.0007291]
[1644256346518,0.36464469,44173.0,44172.0,0.0007291]
[1644256346920,0.52127969,44173.0,44167.0,0.02115537]
[1644256347121,0.63456469,44173.0,44170.0,0.00072913]
[1644256347321,0.31152,44173.0,44170.0,0.00072913]
[1644256347719,0.15487378,44173.0,44170.0,0.00072913]
[1644256348021,0.15487378,44173.0,44166.0,0.005]
[1644256348218,0.08195877,44167.0,44166.0,0.005]
[1644256348419,0.0416,44167.0,44166.0,0.005]
[1644256348820,0.34868961,44167.0,44166.0,0.005]
[1644256349419,0.43544692,44167.0,44166.0,0.005]
[1644256350456,0.43517457,44167.0,44166.0,0.005]
[1644256353161,0.43517457,44167.0,44164.0,0.00072921]
[1644256354002,0.43517457,44167.0,44158.0,0.05]
[1644256354203,0.24246782,44161.0,44158.0,0.05]
[1644256354403,0.08553953,44160.0,44158.0,0.05]
[1644256355403,0.34841726,44167.0,44158.0,0.05]
[1644256355602,0.34841726,44167.0,44166.0,0.05]
[1644256355804,0.34841726,44167.0,44161.0,0.05]
[1644256356003,0.3453559,44167.0,44161.0,0.05]
[1644256356203,0.20382873,44164.0,44161.0,0.05]
[1644256356605,0.07967639,44163.0,44162.0,0.00072924]
[1644256357657,0.07967639,44163.0,44161.0,0.05]
[1644256358055,0.03826629,44167.0,44161.0,0.05]
[1644256358254,0.01854188,44171.0,44166.0,0.05]
[1644256358459,0.01854188,44171.0,44170.0,0.24019025]
[1644256358656,0.01854188,44171.0,44170.0,0.56242225]
[1644256358857,2.18845981,44190.0,44171.0,0.8]
[1644256359053,2.18845981,44190.0,44179.0,0.05]
[1644256359054,0.21286688,44181.0,44179.0,0.05]
[1644256360257,0.21286688,44181.0,44177.0,0.00072904]
[1644256360855,0.21286688,44181.0,44177.0,0.20032507]
[1644256361115,0.21286688,44181.0,44177.0,0.00072904]
[1644256361406,0.21286688,44181.0,44176.0,0.00072905]
[1644256361407,0.06894386,44177.0,44176.0,0.00072905]
[1644256362404,0.06894386,44177.0,44170.0,0.0185]
[1644256362605,0.48943241,44174.0,44170.0,0.0185]
[1644256362808,0.58943241,44174.0,44170.0,0.0185]
[1644256363007,0.48943241,44174.0,44170.0,0.0185]
[1644256363207,0.48943241,44174.0,44168.0,0.00291674]
[1644256363208,0.0416,44173.0,44168.0,0.00291674]
[1644256363609,0.07382359,44169.0,44167.0,0.02769497]
[1644256363808,0.0416,44173.0,44168.0,0.00072915]
[1644256364008,0.34000169,44180.0,44172.0,0.05]
[1644256364009,0.0002,44180.0,44172.0,0.05]
[1644256364408,0.01815161,44185.0,44178.0,0.00063027]
[1644256364860,0.34077252,44184.0,44178.0,0.00063027]
[1644256365055,0.33077252,44184.0,44179.0,0.00072901]
[1644256365253,0.44402112,44184.0,44179.0,0.00072901]
[1644256365455,0.43644184,44183.0,44179.0,0.00072901]
[1644256365753,0.0416,44182.0,44179.0,0.00072901]
[1644256365956,0.0416,44182.0,44178.0,0.00063027]
[1644256366156,0.0916,44182.0,44178.0,0.00135929]
[1644256366354,0.113264,44181.0,44178.0,0.00135929]
[1644256366558,0.0916,44182.0,44162.0,0.3]
[1644256366559,0.07450939,44177.0,44162.0,0.3]
[1644256366756,0.07450939,44177.0,44158.0,0.05]
[1644256366757,0.06732305,44159.0,44158.0,0.05]
[1644256366956,0.11328763,44174.0,44158.0,0.05]
[1644256366957,0.0166,44165.0,44158.0,0.05]
[1644256367156,0.0416,44165.0,44158.0,0.05]
[1644256367556,0.2532987,44159.0,44158.0,0.05]
[1644256367756,0.19816018,44162.0,44158.0,0.05]
[1644256369116,0.01272085,44162.0,44158.0,0.05]
[1644256369415,0.01272085,44162.0,44158.0,0.045]
[1644256369617,0.005,44160.0,44158.0,0.045]
[1644256370016,0.00472749,44160.0,44158.0,0.04527251]
[1644256370817,0.01272085,44162.0,44158.0,0.04527251]
[1644256371419,0.00507434,44166.0,44158.0,0.04527251]
[1644256371718,0.00980183,44166.0,44158.0,0.04527251]
[1644256372117,0.00472749,44161.0,44158.0,0.04527251]
[1644256372368,0.20727345,44161.0,44160.0,0.00072686]
[1644256372562,0.11802649,44161.0,44160.0,0.00072686]
[1644256373262,0.34087684,44161.0,44157.0,0.04527251]
[1644256373461,0.70601233,44161.0,44158.0,0.00072688]
[1644256373663,0.00472749,44159.0,44158.0,0.00072688]
[1644256373865,0.05665307,44159.0,44158.0,0.00072688]
[1644256374062,0.05665307,44159.0,44158.0,0.04599939]
[1644256374369,0.51594644,44159.0,44158.0,0.00072688]
[1644256374563,0.51594644,44159.0,44145.0,0.04527251]
[1644256374564,0.35702393,44153.0,44145.0,0.04527251]
[1644256374763,0.35702393,44153.0,44150.0,0.00290804]
[1644256374764,0.13128626,44152.0,44150.0,0.00290804]
[1644256375163,0.00472749,44152.0,44150.0,0.00290804]
[1644256375364,0.20322279,44152.0,44150.0,0.00290804]
[1644256375761,0.20322279,44152.0,44149.0,0.02140116]
[1644256375963,0.20322279,44152.0,44149.0,0.02212816]
[1644256376611,0.24482279,44152.0,44149.0,0.02212816]
[1644256376809,0.24482279,44152.0,44149.0,0.02140116]
[1644256377210,0.0416,44152.0,44148.0,0.000727]
[1644256377812,0.0416,44152.0,44151.0,0.04527251]
[1644256378013,0.07182014,44159.0,44151.0,0.04527251]
[1644256378214,0.34036787,44159.0,44158.0,0.04527251]
[1644256378412,0.40622866,44159.0,44150.0,0.30273627]
[1644256378613,0.40622866,44159.0,44150.0,0.04527251]
[1644256379214,0.07732168,44152.0,44149.0,0.01808385]
[1644256379714,0.27817307,44152.0,44149.0,0.01808385]
[1644256380362,0.20085139,44152.0,44149.0,0.01808385]
[1644256381263,0.0717743,44151.0,44148.0,0.000727]
[1644256381663,0.0717743,44151.0,44145.0,0.04027251]
[1644256381860,0.0717743,44151.0,44147.0,0.00072702]
[1644256382261,0.24611444,44153.0,44147.0,0.00072702]
[1644256382466,0.34909624,44157.0,44151.0,0.04027251]
[1644256383259,0.34909624,44157.0,44145.0,0.22225363]
[1644256383260,0.08413142,44156.0,44145.0,0.22225363]
[1644256383459,0.01976963,44156.0,44145.0,0.22225363]
[1644256383702,0.21401162,44149.0,44146.0,0.05277]
[1644256384401,0.07502338,44152.0,44146.0,0.05277]
[1644256384605,0.01976963,44156.0,44147.0,0.3]
[1644256384806,0.01976963,44156.0,44155.0,0.04027251]
[1644256385205,0.00507434,44166.0,44155.0,0.04007251]
[1644256385404,0.02076204,44158.0,44148.0,0.322232]
[1644256385605,0.20830031,44157.0,44151.0,0.322232]
[1644256385807,0.20830031,44157.0,44150.0,0.04007251]
[1644256386208,0.20830031,44157.0,44153.0,0.04007251]
[1644256386406,0.20830031,44157.0,44148.0,0.04007251]
[1644256386606,0.19778028,44157.0,44152.0,0.04007251]
[1644256386809,0.19778028,44157.0,44153.0,0.00056727]
[1644256387007,0.02076204,44158.0,44153.0,0.00056727]
[1644256387207,0.33617063,44163.0,44157.0,0.04007251]
[1644256387453,0.02186353,44159.0,44157.0,0.04007251]
[1644256387854,0.02186353,44159.0,44158.0,0.00056721]
[1644256388253,0.02186353,44159.0,44158.0,0.19614446]
[1644256388455,0.02186353,44159.0,44158.0,0.46706598]
[1644256388654,0.02186353,44159.0,44158.0,0.83929798]
[1644256388863,0.00992749,44179.0,44159.0,0.8]
[1644256389056,0.05,44181.0,44170.0,0.04007251]
[1644256389255,0.0289866,44181.0,44165.0,0.8]
[1644256389463,0.01956479,44168.0,44165.0,1.06920968]
[1644256389655,0.00956479,44168.0,44167.0,0.84007251]
[1644256389854,0.00956479,44168.0,44167.0,1.45225871]
[1644256390259,0.00927163,44168.0,44167.0,1.17230451]
[1644256390456,0.00927163,44168.0,44167.0,1.64405735]
[1644256390655,0.00927163,44168.0,44167.0,1.69405735]
[1644256391616,0.00927163,44168.0,44167.0,1.47844742]
[1644256392409,0.00927163,44168.0,44167.0,0.37230451]
[1644256392810,0.00927163,44168.0,44167.0,0.05007251]
[1644256393010,0.00927163,44168.0,44167.0,0.01]
[1644256394012,0.21041334,44171.0,44165.0,0.04079843]
[1644256394213,0.21041334,44171.0,44165.0,0.00072592]
[1644256394712,0.21041334,44171.0,44165.0,0.04079843]
[1644256394955,0.21041334,44171.0,44164.0,0.01885956]
[1644256394956,0.20988404,44171.0,44164.0,0.01885956]
[1644256395156,0.21041334,44171.0,44166.0,0.00072591]
[1644256396155,0.20988404,44171.0,44161.0,0.11673994]
[1644256396359,0.06732744,44162.0,44161.0,0.02003843]
[1644256396558,0.07725493,44162.0,44161.0,0.02003843]
[1644256397164,0.69843884,44162.0,44161.0,0.02003843]
[1644256397357,0.69843884,44162.0,44157.0,0.01939789]
[1644256397558,0.4417819,44162.0,44159.0,0.000726]
[1644256397757,0.00992749,44160.0,44159.0,0.000726]
[1644256398157,0.00721574,44160.0,44159.0,0.000726]
[1644256398606,0.00721574,44160.0,44157.0,0.01939789]
[1644256398805,0.00721574,44160.0,44157.0,0.02012391]
[1644256399408,0.00721574,44160.0,44157.0,0.00072602]
[1644256399813,0.63291705,44162.0,44155.0,0.01893761]
[1644256400009,0.00721574,44160.0,44155.0,0.01893761]
[1644256400412,0.63291705,44162.0,44155.0,0.01893761]
[1644256400413,0.73291705,44162.0,44155.0,0.01893761]
[1644256400611,0.00721574,44156.0,44155.0,0.01893761]
[1644256401313,0.0416,44160.0,44151.0,0.020665]
[1644256401518,0.67838882,44155.0,44151.0,0.020665]
[1644256401713,0.00721574,44152.0,44144.0,1.04278426]
[1644256402015,0.67838882,44155.0,44144.0,1.0]
[1644256402016,0.09254944,44145.0,44144.0,1.0]
[1644256402213,0.0416,44148.0,44145.0,0.45]
[1644256402466,0.0416,44148.0,44144.0,1.0]
[1644256402467,0.04881574,44148.0,44146.0,0.00072705]
[1644256402662,0.26981685,44147.0,44144.0,0.99572705]
[1644256403464,0.35956984,44147.0,44144.0,0.99572705]
[1644256403666,0.26981685,44147.0,44144.0,0.99572705]
[1644256405367,0.00721574,44145.0,44144.0,0.99572705]
[1644256407406,0.0416,44153.0,44144.0,0.99572705]
[1644256407804,0.00694324,44151.0,44144.0,0.99572705]
[1644256408007,0.0416,44153.0,44148.0,0.04305676]
[1644256408207,0.02139501,44154.0,44152.0,0.04305676]
[1644256408405,0.02139501,44154.0,44153.0,0.322232]
[1644256408607,0.02139501,44154.0,44153.0,0.622232]
[1644256408608,0.01939501,44154.0,44153.0,0.622232]
[1644256409005,0.01939501,44154.0,44151.0,0.11329]
[1644256409206,0.01939501,44154.0,44149.0,0.50946034]
[1644256409605,0.00694324,44157.0,44153.0,0.04305676]
[1644256409869,0.00694324,44157.0,44156.0,0.04305676]
[1644256410262,0.02103473,44163.0,44156.0,0.05]
[1644256410460,0.01848513,44163.0,44162.0,0.05]
[1644256410663,0.01848513,44163.0,44162.0,0.372232]
[1644256410958,0.01848513,44163.0,44162.0,0.05]
[1644256411159,0.01848513,44163.0,44162.0,0.025]
[1644256411359,0.08351604,44168.0,44156.0,0.325]
[1644256411558,0.07952543,44160.0,44156.0,0.325]
[1644256411759,0.07952543,44160.0,44156.0,0.025]
[1644256411959,0.025,44157.0,44153.0,0.02003191]
[1644256412161,0.025,44154.0,44153.0,0.02003191]
[1644256413362,0.025,44154.0,44151.0,0.00072698]
[1644256413604,0.0168,44153.0,44151.0,0.00072698]
[1644256414205,0.0168,44153.0,44144.0,1.41756309]
[1644256414404,0.0168,44153.0,44150.0,0.000727]
[1644256415408,0.0168,44153.0,44144.0,1.04883718]
[1644256415606,0.0168,44151.0,44149.0,0.000727]
[1644256416005,0.07193019,44156.0,44149.0,0.000727]
[1644256416006,0.0118,44152.0,44149.0,0.000727]
[1644256416406,0.0118,44152.0,44145.0,0.0382]
[1644256416609,0.0118,44154.0,44145.0,0.0382]
[1644256416807,0.31866848,44154.0,44145.0,0.0382]
[1644256417005,0.1965662,44150.0,44145.0,0.0382]
[1644256417207,0.1915662,44150.0,44149.0,0.05102]
[1644256417655,0.0118,44154.0,44149.0,0.05102]
[1644256418856,0.24871107,44152.0,44149.0,0.05102]
[1644256419460,0.0118,44151.0,44149.0,0.05102]
[1644256420261,0.10507483,44156.0,44149.0,0.05102]
[1644256420262,0.10507483,44156.0,44150.0,0.5]
[1644256420462,0.00053257,44155.0,44150.0,0.5]
[1644256421203,0.00053257,44155.0,44151.0,0.26880597]
[1644256421410,0.1187,44175.0,44154.0,0.322232]
[1644256421610,0.1187,44175.0,44151.0,0.26880597]
[1644256421611,0.02080894,44164.0,44162.0,0.05]
[1644256421807,0.02080894,44164.0,44163.0,0.05]
[1644256422204,0.02080894,44164.0,44163.0,1.16655254]
[1644256422405,0.02080894,44164.0,44163.0,1.46655254]
[1644256422605,0.02080894,44164.0,44163.0,0.83925454]
[1644256422905,0.02080894,44164.0,44163.0,0.53925454]
[1644256423104,0.02080894,44164.0,44163.0,0.83192231]
[1644256423505,0.00015978,44166.0,44163.0,0.85700994]
[1644256423706,0.02097132,44173.0,44166.0,0.056623]
[1644256424104,0.20221843,44172.0,44165.0,0.113245]
[1644256424305,0.20221843,44172.0,44166.0,0.05]
[1644256424606,0.07450389,44164.0,44157.0,0.3702]
[1644256424863,0.05,44169.0,44159.0,0.11327]
[1644256425057,0.05,44169.0,44159.0,0.36824168]
[1644256425255,0.32679754,44171.0,44159.0,0.36824168]
[1644256425256,0.0005326,44163.0,44159.0,0.36824168]
[1644256426055,0.05,44166.0,44159.0,0.36824168]
[1644256426255,0.04972746,44166.0,44159.0,0.41324168]
[1644256426455,0.0005326,44163.0,44159.0,0.41324168]
[1644256427155,0.0005326,44163.0,44159.0,0.63425621]
[1644256427356,0.32156139,44172.0,44162.0,0.05690454]
[1644256427357,0.04972746,44169.0,44162.0,0.05690454]
[1644256427556,0.0005326,44163.0,44162.0,0.17016254]
[1644256427756,0.04972746,44169.0,44162.0,0.11353054]
[1644256427956,0.04972746,44170.0,44163.0,0.00027254]
[1644256428157,0.06353038,44167.0,44162.0,0.113258]
[1644256428365,0.04972746,44163.0,44159.0,0.10827]
[1644256428618,0.3729365,44171.0,44154.0,0.01864018]
[1644256428619,0.13363146,44160.0,44154.0,0.01864018]
[1644256428813,0.04972746,44160.0,44154.0,0.01864018]
[1644256429012,0.130814,44163.0,44154.0,0.01864018]
[1644256429216,0.130814,44163.0,44156.0,0.25457075]
[1644256429414,0.130814,44163.0,44155.0,0.32005298]
[1644256429613,0.04972746,44159.0,44155.0,0.32005298]
[1644256430014,0.04895132,44159.0,44155.0,0.32005298]
[1644256430213,0.130814,44163.0,44155.0,0.37005298]
[1644256430413,0.130814,44163.0,44155.0,0.35528654]
[1644256430813,0.130814,44163.0,44155.0,0.30528654]
[1644256432562,0.130814,44163.0,44155.0,0.24864454]
[1644256432761,0.130814,44163.0,44155.0,0.05]
[1644256432959,0.130814,44163.0,44153.0,0.0007275]
[1644256433162,0.0757031,44158.0,44153.0,0.0007275]
[1644256433363,0.04895132,44155.0,44152.0,0.05]
[1644256433567,0.04895132,44155.0,44153.0,0.0007275]
[1644256433763,0.25909012,44154.0,44153.0,0.0007275]
[1644256434562,0.25909012,44154.0,44151.0,0.02029747]
[1644256434563,0.31575312,44154.0,44151.0,0.02029747]
[1644256434760,0.25909012,44154.0,44151.0,0.02102499]
[1644256435461,0.25909012,44154.0,44151.0,0.00072752]
[1644256435662,0.25909012,44154.0,44144.0,1.04915573]
[1644256435863,0.26587993,44147.0,44146.0,0.05]
[1644256436111,0.26587993,44147.0,44144.0,1.04541329]
[1644256436112,0.21587993,44147.0,44144.0,1.04541329]
[1644256436708,0.21587993,44147.0,44144.0,0.99541329]
[1644256436910,0.21587993,44147.0,44144.0,0.99250273]
[1644256437311,0.0002,44150.0,44144.0,0.99250273]
[1644256437611,0.0002,44150.0,44147.0,0.00104868]
[1644256437810,0.0002,44150.0,44148.0,0.20476993]
[1644256438010,3.0,44173.0,44149.0,0.6]
[1644256438212,0.20908836,44158.0,44155.0,0.02150731]
[1644256438713,0.36516083,44163.0,44155.0,0.02150731]
[1644256438911,0.36516083,44163.0,44155.0,0.21839262]
[1644256439111,0.056651,44161.0,44155.0,0.02150731]
[1644256439310,0.113298,44166.0,44155.0,0.02150731]
[1644256439511,0.7879,44169.0,44155.0,0.02150731]
[1644256439512,0.322158,44165.0,44156.0,0.056642]
[1644256439711,0.322158,44165.0,44158.0,0.05]
[1644256439964,0.322158,44165.0,44159.0,0.26140203]
[1644256440265,0.322158,44165.0,44159.0,0.05]
[1644256440465,0.322158,44165.0,44159.0,0.24269192]
[1644256440661,0.322158,44165.0,44159.0,0.05]
[1644256441064,0.27251963,44161.0,44156.0,0.05]
[1644256441368,0.2628965,44160.0,44155.0,0.07150731]
[1644256441566,0.2628965,44160.0,44155.0,0.02150731]
[1644256441963,0.2628965,44160.0,44155.0,0.02223478]
[1644256442173,0.3195485,44160.0,44155.0,0.02223478]
[1644256443064,0.3195485,44160.0,44155.0,0.02150731]
[1644256443265,0.3195485,44160.0,44155.0,0.02223478]
[1644256443467,0.3195485,44160.0,44155.0,0.00072747]
[1644256444138,0.3195485,44160.0,44151.0,0.07150162]
[1644256444338,0.3195485,44160.0,44155.0,0.00072747]
[1644256444541,0.06960184,44156.0,44155.0,0.00072747]
[1644256444737,0.2628965,44160.0,44155.0,0.00072747]
[1644256445338,0.2628965,44160.0,44151.0,0.09343975]
[1644256445538,0.2628965,44160.0,44155.0,0.00072747]
[1644256445738,0.08441368,44158.0,44155.0,0.00072747]
[1644256445938,0.2628965,44160.0,44155.0,0.00072747]
[1644256446139,0.27251963,44161.0,44155.0,0.00072747]
[1644256446542,0.27251963,44161.0,44155.0,0.26597575]
[1644256446742,0.27251963,44161.0,44156.0,0.00072746]
[1644256446940,0.27224707,44161.0,44156.0,0.00072746]
[1644256447667,0.26380391,44161.0,44156.0,0.00072746]
[1644256447860,0.2175818,44157.0,44154.0,0.01977436]
[1644256448460,0.05868706,44157.0,44154.0,0.01977436]
[1644256448963,0.46635416,44166.0,44154.0,0.01977436]
[1644256449362,0.113303,44163.0,44154.0,0.01977436]
[1644256449962,0.1971856,44162.0,44155.0,0.20943495]
[1644256450262,0.1971856,44162.0,44156.0,0.00072803]
[1644256450263,0.2538326,44162.0,44156.0,0.00072803]
[1644256451413,0.2538326,44162.0,44154.0,0.05]
[1644256451414,0.322158,44161.0,44154.0,0.05]
[1644256451611,0.056653,44159.0,44157.0,0.00072802]
[1644256452511,0.14019084,44159.0,44153.0,0.05180254]
[1644256452712,0.27281797,44158.0,44156.0,0.00072804]
[1644256453111,0.26781797,44158.0,44156.0,0.00072804]
[1644256453711,0.26781797,44158.0,44153.0,0.04753058]
[1644256453912,0.26781797,44158.0,44155.0,0.00072805]
[1644256454315,0.08522676,44157.0,44155.0,0.00072805]
[1644256454716,0.26781797,44158.0,44155.0,0.00072805]
[1644256454980,0.20306876,44169.0,44157.0,0.05]
[1644256455182,0.322158,44168.0,44166.0,0.05]
[1644256455578,0.322158,44168.0,44164.0,0.05]
[1644256455778,0.34789724,44166.0,44164.0,0.05]
[1644256455979,0.322158,44165.0,44164.0,0.05]
[1644256457579,0.322158,44165.0,44164.0,0.1]
[1644256457779,0.322158,44166.0,44164.0,0.31323377]
[1644256457979,0.322158,44166.0,44164.0,0.05]
[1644256458378,0.023516,44165.0,44164.0,0.05]
[1644256458623,0.59048693,44165.0,44164.0,0.05]
[1644256459227,0.57671512,44165.0,44154.0,0.00072867]
[1644256459426,0.07532772,44155.0,44154.0,0.00072867]
[1644256459626,0.35455712,44165.0,44154.0,0.00072867]
[1644256459825,0.24670433,44155.0,44151.0,0.3]
[1644256460026,0.24670433,44155.0,44149.0,0.056648]
[1644256460426,0.24170433,44155.0,44153.0,0.05]
[1644256461027,0.24170433,44155.0,44149.0,0.056646]
[1644256461228,0.24170433,44155.0,44148.0,0.35]
[1644256461427,0.24170433,44155.0,44149.0,0.0214221]
[1644256461730,0.24170433,44155.0,44152.0,0.05]
[1644256462130,0.24170433,44155.0,44153.0,0.05]
[1644256462959,0.24170433,44155.0,44151.0,0.056646]
[1644256463361,0.24170433,44155.0,44149.0,0.09115396]
[1644256463562,0.24170433,44155.0,44151.0,0.05072925]
[1644256463761,0.322158,44154.0,44151.0,0.00072925]
[1644256463962,0.322158,44154.0,44153.0,0.05]
[1644256464361,0.32418699,44154.0,44153.0,0.05]
[1644256464562,20.0,44155.0,44154.0,0.25]
[1644256464765,20.0,44155.0,44154.0,1.0233992]
[1644256465162,20.0,44155.0,44154.0,0.9733992]
[1644256465561,19.99972746,44155.0,44154.0,0.9733992]
[1644256465761,19.99972746,44155.0,44154.0,1.0233992]
[1644256466613,19.99972746,44155.0,44154.0,1.0800302]
[1644256466814,19.99972746,44155.0,44154.0,1.1800302]
[1644256467013,19.99972746,44155.0,44154.0,1.23665861]
[1644256468313,19.99972746,44155.0,44153.0,0.16325824]
[1644256468314,19.99972746,44155.0,44153.0,0.05]
[1644256468712,20.07209174,44155.0,44153.0,0.05]
[1644256469313,20.07209174,44155.0,44152.0,0.01070286]
[1644256469314,0.20724857,44154.0,44152.0,0.01]
[1644256469512,0.20724857,44154.0,44152.0,0.01070286]
[1644256469712,19.99972746,44155.0,44153.0,0.05]
[1644256469964,19.99972746,44155.0,44154.0,0.05]
[1644256470761,20.37317446,44155.0,44154.0,0.05]
[1644256470961,20.56697389,44155.0,44152.0,0.01070286]
[1644256471160,20.56197389,44155.0,44152.0,0.01070286]
[1644256471360,20.56197389,44155.0,44154.0,0.05]
[1644256471760,20.56197389,44155.0,44152.0,0.01]
[1644256471962,20.56197389,44155.0,44152.0,0.01068001]
[1644256472564,20.56197389,44155.0,44153.0,0.05]
[1644256472862,20.55697389,44155.0,44153.0,0.05]
[1644256473062,20.55697389,44155.0,44152.0,0.01]
[1644256473261,20.55697389,44155.0,44152.0,0.01068001]
[1644256473462,20.55697389,44155.0,44154.0,0.04624277]
[1644256473714,19.55697389,44155.0,44154.0,0.04624277]
[1644256474515,19.47544007,44155.0,44154.0,0.04624277]
[1644256475117,19.17852689,44155.0,44154.0,0.04624277]
[1644256475519,19.24781729,44155.0,44154.0,0.04624277]
[1644256476517,19.24781729,44155.0,44154.0,0.09624277]
[1644256476717,19.17852689,44155.0,44154.0,0.14624277]
[1644256477018,18.97972746,44155.0,44154.0,0.14624277]
[1644256477458,18.97472746,44155.0,44154.0,0.14624277]
[1644256478759,18.97472746,44155.0,44154.0,0.09624277]
[1644256479161,18.97472746,44155.0,44152.0,0.0106809]
[1644256480264,18.97472746,44155.0,44152.0,0.01]
[1644256482315,18.92485985,44155.0,44152.0,0.01]
[1644256483518,18.92458726,44155.0,44152.0,0.01]
[1644256483920,18.92458726,44155.0,44154.0,0.05]
[1644256484322,18.92458726,44155.0,44154.0,0.27247988]
[1644256484719,18.92458726,44155.0,44154.0,0.37247988]
[1644256484974,18.92458726,44155.0,44154.0,0.6527694]
[1644256487073,18.92458726,44155.0,44154.0,0.38028952]
[1644256487273,18.92458726,44155.0,44154.0,0.1]
[1644256487474,18.92458726,44155.0,44154.0,0.15]
[1644256488172,18.91798726,44155.0,44154.0,0.34988916]
[1644256488618,18.91798726,44155.0,44154.0,0.61626878]
[1644256490224,18.91798726,44155.0,44154.0,0.87898395]
[1644256490423,18.91798726,44155.0,44154.0,1.13553395]
[1644256490424,18.2715186,44155.0,44154.0,1.13553395]
[1644256490625,18.2715186,44155.0,44154.0,0.80786878]
[1644256490822,13.4209621,44155.0,44154.0,1.10786878]
[1644256491024,10.22268893,44155.0,44154.0,1.10786878]
[1644256491224,10.20989698,44155.0,44154.0,1.29719313]
[1644256491427,9.85309597,44155.0,44154.0,1.10786878]
[1644256491624,9.12451424,44155.0,44154.0,1.34452422]
[1644256491826,4.32315659,44155.0,44154.0,1.0781446]
[1644256492026,0.00212628,44172.0,44157.0,0.8]
[1644256492226,3.0,44173.0,44171.0,0.106606]
[1644256492466,3.0,44173.0,44172.0,0.31768283]
[1644256492467,2.9001,44173.0,44172.0,0.31768283]
[1644256492765,2.6455,44173.0,44172.0,0.31768283]
[1644256492964,2.305948,44173.0,44172.0,0.65728787]
[1644256493163,2.305948,44173.0,44172.0,0.98004787]
[1644256493362,1.966377,44173.0,44172.0,0.98004787]
[1644256494563,1.44935787,44173.0,44172.0,0.98004787]
[1644256494962,1.44935787,44173.0,44172.0,0.74044283]
[1644256495166,1.44935787,44173.0,44172.0,0.36436]
[1644256495565,1.53400776,44173.0,44172.0,0.36436]
[1644256495771,1.44935787,44173.0,44172.0,0.0416]
[1644256495965,1.44935787,44173.0,44170.0,0.05]
[1644256497210,1.44935787,44173.0,44168.0,0.08885502]
[1644256497410,1.44935787,44173.0,44168.0,0.09547302]
[1644256497611,1.44935787,44173.0,44168.0,0.15209002]
[1644256497811,1.44935787,44173.0,44172.0,0.05]
[1644256498011,1.43753785,44173.0,44168.0,0.106617]
[1644256498212,1.43753785,44173.0,44168.0,0.056617]
[1644256498415,1.43753785,44173.0,44171.0,0.05]
[1644256498812,1.43753785,44173.0,44170.0,0.106614]
[1644256499012,1.43753785,44173.0,44168.0,0.156617]
[1644256499212,1.43753785,44173.0,44169.0,0.05]
[1644256499412,1.43753785,44173.0,44170.0,0.05]
[1644256499615,1.43806828,44173.0,44170.0,0.05]
[1644256499864,0.22122208,44172.0,44168.0,0.05]
[1644256500159,0.22122208,44172.0,44167.0,0.05]
[1644256500360,0.22122208,44172.0,44168.0,0.113231]
[1644256500760,1.43753785,44173.0,44168.0,0.163231]
[1644256500964,0.00053043,44172.0,44168.0,0.163231]
[1644256501161,0.00053043,44172.0,44170.0,0.113221]
[1644256501363,0.00025785,44172.0,44171.0,0.30971264]
[1644256501564,0.00025785,44172.0,44171.0,0.36476726]
[1644256501761,1.43753785,44173.0,44171.0,0.55636726]
[1644256501961,1.43753785,44173.0,44172.0,0.36347814]
[1644256502161,1.43753785,44173.0,44172.0,0.72783814]
[1644256502360,1.43753785,44173.0,44172.0,0.82783814]
[1644256503261,1.38749782,44173.0,44172.0,0.82783814]
[1644256504417,0.00015913,44175.0,44172.0,0.87783814]
[1644256504618,0.00063642,44181.0,44176.0,0.55]
[1644256504818,0.00063642,44181.0,44179.0,0.48625269]
[1644256505018,0.004,44198.0,44181.0,0.8]
[1644256505217,0.004,44198.0,44193.0,0.91102093]
[1644256505516,0.0001,44198.0,44196.0,0.05]
[1644256505721,0.0001,44198.0,44197.0,0.0416]
[1644256506521,0.0037,44199.0,44197.0,0.0416]
[1644256506717,0.0037,44199.0,44197.0,0.08316586]
[1644256506917,0.0037,44199.0,44197.0,0.29052893]
[1644256507116,0.0037,44199.0,44197.0,0.0266]
[1644256507379,0.0037,44199.0,44197.0,0.083171]
[1644256507566,0.0037,44199.0,44197.0,0.0266]
[1644256507766,0.0037,44199.0,44195.0,0.07785214]
[1644256507767,0.0037,44199.0,44195.0,0.02129614]
[1644256508066,0.24213379,44196.0,44195.0,0.02129614]
[1644256508466,0.0037,44199.0,44195.0,0.02129614]
[1644256508672,0.0037,44199.0,44197.0,0.05]
[1644256509066,0.0037,44199.0,44195.0,0.06289614]
[1644256509267,0.06651153,44198.0,44195.0,0.06289614]
[1644256509668,0.06651153,44198.0,44195.0,0.08453636]
[1644256509867,0.19661744,44197.0,44195.0,0.06324022]
[1644256510370,0.19661744,44197.0,44195.0,0.02164022]
[1644256510371,0.56952887,44196.0,44195.0,0.02164022]
[1644256511815,0.22777755,44196.0,44191.0,0.01968899]
[1644256512013,0.28486967,44196.0,44191.0,0.01968899]
[1644256512733,0.26986967,44196.0,44191.0,0.01968899]
[1644256513614,0.26333999,44196.0,44191.0,0.01968899]
[1644256513817,0.26333999,44196.0,44195.0,0.01]
[1644256514014,0.57937026,44196.0,44195.0,0.01]
[1644256514214,0.51227814,44196.0,44195.0,0.01]